[Event "Early-Titled-Tuesday-Blitz-March-05-2024"]
[Site "Chess.com"]
[Date "2024.03.05"]
[Round "10"]
[White "Quattroporte300"]
[Black "Caroexpert"]
[Result "1-0"]
[WhiteElo "2459"]
[BlackElo "2579"]
[TimeControl "180+1"]
[EndTime "9:59:44 PST"]
[Termination "Quattroporte300 won by checkmate"]

1. e4 {[%clk 0:02:57.1]} 1... c6 {[%clk 0:02:56.7]} 2. d4 {[%clk 0:02:54.6]}
2... d5 {[%clk 0:02:57.6]} 3. exd5 {[%clk 0:02:55.3]} 3... cxd5 {[%clk
0:02:57.7]} 4. Bd3 {[%clk 0:02:55.6]} 4... Nc6 {[%clk 0:02:56.8]} 5. c3 {[%clk
0:02:56.1]} 5... e6 {[%clk 0:02:57.3]} 6. Bf4 {[%clk 0:02:56]} 6... Bd6 {[%clk
0:02:57.9]} 7. Ne2 {[%clk 0:02:55.1]} 7... Nge7 {[%clk 0:02:58]} 8. O-O {[%clk
0:02:54.1]} 8... O-O {[%clk 0:02:58.6]} 9. Nd2 {[%clk 0:02:52.9]} 9... f6 {[%clk
0:02:59]} 10. Bxd6 {[%clk 0:02:50.4]} 10... Qxd6 {[%clk 0:02:58.8]} 11. Re1
{[%clk 0:02:50.3]} 11... e5 {[%clk 0:02:53.8]} 12. dxe5 {[%clk 0:02:50.1]} 12...
fxe5 {[%clk 0:02:53.4]} 13. Ng3 {[%clk 0:02:42.9]} 13... Qc5 {[%clk 0:02:49.4]}
14. Qe2 {[%clk 0:02:34.2]} 14... e4 {[%clk 0:02:48]} 15. Bc2 {[%clk 0:02:28.5]}
15... Ne5 {[%clk 0:02:47.8]} 16. Nb3 {[%clk 0:02:28.2]} 16... Qb6 {[%clk
0:02:46.3]} 17. Qe3 {[%clk 0:02:19]} 17... Qxe3 {[%clk 0:02:37.9]} 18. Rxe3
{[%clk 0:02:18.5]} 18... Nc4 {[%clk 0:02:38]} 19. Re2 {[%clk 0:02:15.7]} 19...
Nc6 {[%clk 0:02:30.2]} 20. h3 {[%clk 0:02:05.4]} 20... b6 {[%clk 0:02:17.7]} 21.
Rd1 {[%clk 0:02:01.8]} 21... Be6 {[%clk 0:02:11.1]} 22. Bb1 {[%clk 0:01:47.7]}
22... Bf7 {[%clk 0:01:59.5]} 23. Nd4 {[%clk 0:01:43.3]} 23... N6e5 {[%clk
0:01:59.5]} 24. b3 {[%clk 0:01:41.4]} 24... Nd6 {[%clk 0:01:57.6]} 25. Red2
{[%clk 0:01:28.2]} 25... g6 {[%clk 0:01:50.2]} 26. Re1 {[%clk 0:01:19.3]} 26...
Rae8 {[%clk 0:01:44.1]} 27. Kh2 {[%clk 0:01:13.1]} 27... h5 {[%clk 0:01:43.8]}
28. Nf1 {[%clk 0:01:07.7]} 28... Nc8 {[%clk 0:01:22.9]} 29. Nb5 {[%clk
0:01:02.6]} 29... Re7 {[%clk 0:01:09.2]} 30. Ne3 {[%clk 0:01:00.2]} 30... a6
{[%clk 0:00:58.2]} 31. Na3 {[%clk 0:00:55.3]} 31... Rd7 {[%clk 0:00:55.5]} 32.
Red1 {[%clk 0:00:41.5]} 32... Rfd8 {[%clk 0:00:55.2]} 33. Nac2 {[%clk
0:00:35.2]} 33... b5 {[%clk 0:00:47.1]} 34. Nb4 {[%clk 0:00:32.5]} 34... Nb6
{[%clk 0:00:44.8]} 35. Nxa6 {[%clk 0:00:28.9]} 35... Kg7 {[%clk 0:00:43.8]} 36.
Nc5 {[%clk 0:00:20.8]} 36... Rc7 {[%clk 0:00:42.4]} 37. Nxe4 {[%clk 0:00:20]}
37... Rdc8 {[%clk 0:00:38.4]} 38. Nd6 {[%clk 0:00:19]} 38... Rxc3 {[%clk
0:00:33.8]} 39. Nxc8 {[%clk 0:00:14.8]} 39... Rxc8 {[%clk 0:00:34.7]} 40. Rc2
{[%clk 0:00:14.2]} 40... Rd8 {[%clk 0:00:32.4]} 41. Rc5 {[%clk 0:00:11.9]} 41...
Kf6 {[%clk 0:00:30.2]} 42. Rxb5 {[%clk 0:00:10.6]} 42... Rd6 {[%clk 0:00:25.7]}
43. f4 {[%clk 0:00:09.8]} 43... Ned7 {[%clk 0:00:25]} 44. Be4 {[%clk 0:00:06.8]}
44... d4 {[%clk 0:00:21.8]} 45. Nc4 {[%clk 0:00:06.1]} 45... Nxc4 {[%clk
0:00:19]} 46. bxc4 {[%clk 0:00:07]} 46... Bxc4 {[%clk 0:00:19.7]} 47. Rb4 {[%clk
0:00:07.7]} 47... Bxa2 {[%clk 0:00:17.9]} 48. Rbxd4 {[%clk 0:00:08.2]} 48...
Rxd4 {[%clk 0:00:18.7]} 49. Rxd4 {[%clk 0:00:08.4]} 49... Nc5 {[%clk 0:00:18.6]}
50. Bc2 {[%clk 0:00:07.8]} 50... Be6 {[%clk 0:00:17.7]} 51. Kg3 {[%clk
0:00:08.1]} 51... Nd7 {[%clk 0:00:17]} 52. Rb4 {[%clk 0:00:08.2]} 52... Nf8
{[%clk 0:00:14.7]} 53. Kf2 {[%clk 0:00:08.5]} 53... h4 {[%clk 0:00:12.4]} 54.
Rb6 {[%clk 0:00:08.8]} 54... Kf7 {[%clk 0:00:11.8]} 55. Bd3 {[%clk 0:00:08]}
55... Nd7 {[%clk 0:00:11.7]} 56. Rd6 {[%clk 0:00:07.4]} 56... Nc5 {[%clk
0:00:10.7]} 57. Bc2 {[%clk 0:00:06.6]} 57... Kf6 {[%clk 0:00:10.8]} 58. Rc6
{[%clk 0:00:06.7]} 58... Nd7 {[%clk 0:00:05.8]} 59. Bb3 {[%clk 0:00:07.2]} 59...
Nf8 {[%clk 0:00:06]} 60. Kf3 {[%clk 0:00:06.9]} 60... Kf5 {[%clk 0:00:04.4]} 61.
Bxe6+ {[%clk 0:00:06.7]} 61... Nxe6 {[%clk 0:00:04]} 62. Ra6 {[%clk 0:00:06]}
62... Nd4+ {[%clk 0:00:01.9]} 63. Ke3 {[%clk 0:00:06.3]} 63... Ne6 {[%clk
0:00:01.6]} 64. Ra5+ {[%clk 0:00:05.7]} 64... Kf6 {[%clk 0:00:02.2]} 65. Ke4
{[%clk 0:00:06]} 65... Ng7 {[%clk 0:00:02.4]} 66. Ra6+ {[%clk 0:00:05.6]} 66...
Kf7 {[%clk 0:00:02.6]} 67. Ke5 {[%clk 0:00:05.1]} 67... Nh5 {[%clk 0:00:02.5]}
68. Ra7+ {[%clk 0:00:05.6]} 68... Kg8 {[%clk 0:00:02]} 69. Rb7 {[%clk
0:00:04.4]} 69... Kf8 {[%clk 0:00:02.2]} 70. f5 {[%clk 0:00:04.4]} 70... g5
{[%clk 0:00:02.1]} 71. f6 {[%clk 0:00:04.5]} 71... Nf4 {[%clk 0:00:02.5]} 72.
Kf5 {[%clk 0:00:04.1]} 72... Nxg2 {[%clk 0:00:03.2]} 73. Kxg5 {[%clk 0:00:04.3]}
73... Ne3 {[%clk 0:00:02.6]} 74. Kg6 {[%clk 0:00:04.6]} 74... Nd5 {[%clk
0:00:03.5]} 75. Rb8# {[%clk 0:00:04.9]} 1-0

[Event "Early-Titled-Tuesday-Blitz-March-05-2024"]
[Site "Chess.com"]
[Date "2024.03.05"]
[Round "10"]
[White "ContrVersia"]
[Black "FairChess_on_YouTube"]
[Result "0-1"]
[WhiteElo "2862"]
[BlackElo "3094"]
[TimeControl "180+1"]
[EndTime "9:59:51 PST"]
[Termination "FairChess_on_YouTube won on time"]

1. d4 {[%clk 0:03:00.9]} 1... Nf6 {[%clk 0:02:58.1]} 2. c4 {[%clk 0:03:00.8]}
2... c5 {[%clk 0:02:58.7]} 3. d5 {[%clk 0:03:00.7]} 3... b5 {[%clk 0:02:58.3]}
4. cxb5 {[%clk 0:03:01.6]} 4... a6 {[%clk 0:02:58.5]} 5. e3 {[%clk 0:03:02]}
5... g6 {[%clk 0:02:58.1]} 6. Nc3 {[%clk 0:03:02.1]} 6... Bg7 {[%clk 0:02:58.5]}
7. a4 {[%clk 0:03:02.3]} 7... O-O {[%clk 0:02:58.4]} 8. Nf3 {[%clk 0:03:02.6]}
8... d6 {[%clk 0:02:58.3]} 9. e4 {[%clk 0:03:01.2]} 9... Ne8 {[%clk 0:02:54.9]}
10. Ra3 {[%clk 0:02:53.9]} 10... axb5 {[%clk 0:02:52]} 11. Bxb5 {[%clk
0:02:53.3]} 11... Nc7 {[%clk 0:02:51.5]} 12. Be2 {[%clk 0:02:52]} 12... Ba6
{[%clk 0:02:50]} 13. O-O {[%clk 0:02:52.1]} 13... Nd7 {[%clk 0:02:50.2]} 14. Bd2
{[%clk 0:02:51.4]} 14... Qb8 {[%clk 0:02:48.8]} 15. Bxa6 {[%clk 0:02:49.7]}
15... Rxa6 {[%clk 0:02:48.4]} 16. Qc2 {[%clk 0:02:45.7]} 16... Qa8 {[%clk
0:02:43.5]} 17. Rb1 {[%clk 0:02:41]} 17... Rb8 {[%clk 0:02:42.8]} 18. b3 {[%clk
0:02:40.1]} 18... Rab6 {[%clk 0:02:37.7]} 19. Nd1 {[%clk 0:02:33.2]} 19... Nb5
{[%clk 0:02:21.9]} 20. Ra2 {[%clk 0:02:33.2]} 20... Nd4 {[%clk 0:02:16.7]} 21.
Nxd4 {[%clk 0:02:33.1]} 21... Bxd4 {[%clk 0:02:17]} 22. Ne3 {[%clk 0:02:28.4]}
22... Ne5 {[%clk 0:02:05.3]} 23. Nc4 {[%clk 0:02:21.2]} 23... Nxc4 {[%clk
0:01:42.1]} 24. Qxc4 {[%clk 0:02:22.1]} 24... Qb7 {[%clk 0:01:36.5]} 25. b4
{[%clk 0:02:20.3]} 25... Qd7 {[%clk 0:01:13.7]} 26. a5 {[%clk 0:02:12]} 26...
Rb5 {[%clk 0:01:11.2]} 27. a6 {[%clk 0:02:10.8]} 27... Qa7 {[%clk 0:01:11]} 28.
Be1 {[%clk 0:01:57.4]} 28... cxb4 {[%clk 0:01:00.6]} 29. Rxb4 {[%clk 0:01:20.2]}
29... Rxb4 {[%clk 0:01:00.5]} 30. Bxb4 {[%clk 0:01:20.6]} 30... Bc5 {[%clk
0:00:53.6]} 31. Be1 {[%clk 0:01:01.4]} 31... Rb1 {[%clk 0:00:53.1]} 32. Kf1
{[%clk 0:01:01.8]} 32... Bb4 {[%clk 0:00:44.7]} 33. Re2 {[%clk 0:01:01.9]} 33...
Qb6 {[%clk 0:00:36.2]} 34. Qd3 {[%clk 0:00:48.5]} 34... Ra1 {[%clk 0:00:30.1]}
35. g3 {[%clk 0:00:44.2]} 35... Qa5 {[%clk 0:00:28.8]} 36. Qe3 {[%clk
0:00:36.6]} 36... Qxa6 {[%clk 0:00:24.1]} 37. Kg2 {[%clk 0:00:30.1]} 37... Ra3
{[%clk 0:00:23.2]} 38. Bxb4 {[%clk 0:00:24.1]} 38... Rxe3 {[%clk 0:00:23.2]} 39.
Rxe3 {[%clk 0:00:24.9]} 39... Qc4 {[%clk 0:00:23.8]} 40. Be1 {[%clk 0:00:24.4]}
40... f5 {[%clk 0:00:21.5]} 41. f3 {[%clk 0:00:22.1]} 41... Qc2+ {[%clk
0:00:19.6]} 42. Bf2 {[%clk 0:00:22.2]} 42... Kf7 {[%clk 0:00:19.9]} 43. g4
{[%clk 0:00:21.6]} 43... h5 {[%clk 0:00:16.3]} 44. gxh5 {[%clk 0:00:20.3]} 44...
gxh5 {[%clk 0:00:17.2]} 45. h4 {[%clk 0:00:20.9]} 45... Kf6 {[%clk 0:00:16.2]}
46. Kf1 {[%clk 0:00:19.1]} 46... Qd1+ {[%clk 0:00:15.3]} 47. Kg2 {[%clk
0:00:19.1]} 47... fxe4 {[%clk 0:00:14.6]} 48. fxe4 {[%clk 0:00:18.3]} 48... Ke5
{[%clk 0:00:13.9]} 49. Bg3+ {[%clk 0:00:16.2]} 49... Kd4 {[%clk 0:00:14]} 50.
Bf2 {[%clk 0:00:16.7]} 50... Ke5 {[%clk 0:00:13.6]} 51. Bg3+ {[%clk 0:00:16.7]}
51... Kd4 {[%clk 0:00:14.2]} 52. Bf2 {[%clk 0:00:17.3]} 52... Kc4 {[%clk
0:00:14.8]} 53. Kg3 {[%clk 0:00:15.5]} 53... Qg4+ {[%clk 0:00:14.6]} 54. Kh2
{[%clk 0:00:16]} 54... Qf4+ {[%clk 0:00:14.5]} 55. Kg2 {[%clk 0:00:16.4]} 55...
Qg4+ {[%clk 0:00:14.9]} 56. Kh2 {[%clk 0:00:16.8]} 56... Kb5 {[%clk 0:00:12.7]}
57. Kh1 {[%clk 0:00:15.7]} 57... Qf4 {[%clk 0:00:11.7]} 58. Kg2 {[%clk
0:00:15.5]} 58... Ka6 {[%clk 0:00:11.4]} 59. Kf1 {[%clk 0:00:15.6]} 59... Kb7
{[%clk 0:00:11]} 60. Kg2 {[%clk 0:00:15.8]} 60... Kc8 {[%clk 0:00:11.2]} 61. Kf1
{[%clk 0:00:16]} 61... Qh2 {[%clk 0:00:10.5]} 62. Ke1 {[%clk 0:00:12.1]} 62...
Qh1+ {[%clk 0:00:10.5]} 63. Ke2 {[%clk 0:00:12.4]} 63... Kd7 {[%clk 0:00:11.3]}
64. Bg3 {[%clk 0:00:09.1]} 64... Qg2+ {[%clk 0:00:11.1]} 65. Bf2 {[%clk
0:00:09.2]} 65... Ke8 {[%clk 0:00:10.5]} 66. Ke1 {[%clk 0:00:09]} 66... Kd7
{[%clk 0:00:10.4]} 67. Ke2 {[%clk 0:00:08.5]} 67... e6 {[%clk 0:00:10.8]} 68.
dxe6+ {[%clk 0:00:08.6]} 68... Kxe6 {[%clk 0:00:11.7]} 69. Ke1 {[%clk
0:00:08.3]} 69... Ke5 {[%clk 0:00:11.8]} 70. Ke2 {[%clk 0:00:08.7]} 70... Kf4
{[%clk 0:00:11.1]} 71. Ke1 {[%clk 0:00:05.1]} 71... Kg4 {[%clk 0:00:10.9]} 72.
Ke2 {[%clk 0:00:03.9]} 72... Kf4 {[%clk 0:00:11.2]} 73. Ke1 {[%clk 0:00:04.1]}
73... Qh1+ {[%clk 0:00:11.8]} 74. Ke2 {[%clk 0:00:04.4]} 74... Qb1 {[%clk
0:00:12.4]} 75. Bg3+ {[%clk 0:00:03.1]} 75... Kg4 {[%clk 0:00:12.8]} 76. Bf2
{[%clk 0:00:03.1]} 76... Qc2+ {[%clk 0:00:12.8]} 77. Kf1 {[%clk 0:00:03.5]}
77... Kf4 {[%clk 0:00:12.6]} 78. Kg2 {[%clk 0:00:03.1]} 78... Qd1 {[%clk
0:00:13.1]} 79. Re1 {[%clk 0:00:03.1]} 79... Qf3+ {[%clk 0:00:13]} 80. Kg1
{[%clk 0:00:03.2]} 80... Qg4+ {[%clk 0:00:12.3]} 81. Kf1 {[%clk 0:00:03.3]}
81... Qh3+ {[%clk 0:00:12.5]} 82. Kg1 {[%clk 0:00:03.8]} 82... Qd3 {[%clk
0:00:12.7]} 83. Kg2 {[%clk 0:00:03.8]} 83... Qb3 {[%clk 0:00:11.6]} 84. Kg1
{[%clk 0:00:04.1]} 84... Kf3 {[%clk 0:00:11.1]} 85. Kf1 {[%clk 0:00:01.7]} 85...
Qc4+ {[%clk 0:00:11]} 86. Kg1 {[%clk 0:00:02.2]} 86... Qg8+ {[%clk 0:00:11.6]}
0-1

[Event "Early-Titled-Tuesday-Blitz-March-05-2024"]
[Site "Chess.com"]
[Date "2024.03.05"]
[Round "10"]
[White "M1711"]
[Black "Mesa_1"]
[Result "1-0"]
[WhiteElo "2584"]
[BlackElo "2491"]
[TimeControl "180+1"]
[EndTime "9:59:54 PST"]
[Termination "M1711 won on time"]

1. e4 {[%clk 0:03:00.9]} 1... c5 {[%clk 0:02:54.3]} 2. Nf3 {[%clk 0:03:00.6]}
2... e6 {[%clk 0:02:52.6]} 3. d4 {[%clk 0:03:00.7]} 3... cxd4 {[%clk 0:02:53]}
4. Bg5 {[%clk 0:03:00.4]} 4... Qa5+ {[%clk 0:02:49.2]} 5. c3 {[%clk 0:03:00.5]}
5... dxc3 {[%clk 0:02:33.5]} 6. Nxc3 {[%clk 0:02:59.2]} 6... h6 {[%clk
0:02:31.4]} 7. Bd2 {[%clk 0:02:58.7]} 7... Qd8 {[%clk 0:02:29.4]} 8. Rc1 {[%clk
0:02:58.6]} 8... d6 {[%clk 0:02:28.3]} 9. Bb5+ {[%clk 0:02:53.4]} 9... Nc6
{[%clk 0:02:25.9]} 10. O-O {[%clk 0:02:52.7]} 10... Bd7 {[%clk 0:02:24]} 11. Re1
{[%clk 0:02:51.7]} 11... Nf6 {[%clk 0:02:22.7]} 12. Nd5 {[%clk 0:02:24.5]} 12...
exd5 {[%clk 0:02:19.6]} 13. exd5+ {[%clk 0:02:23.5]} 13... Ne7 {[%clk
0:02:02.3]} 14. Nd4 {[%clk 0:02:22.4]} 14... Nxd5 {[%clk 0:01:54.4]} 15. Qf3
{[%clk 0:02:10.3]} 15... Nf6 {[%clk 0:01:31.2]} 16. Bf4 {[%clk 0:01:19.4]} 16...
Qb6 {[%clk 0:01:25.4]} 17. Bxd7+ {[%clk 0:01:14.3]} 17... Kxd7 {[%clk 0:01:25]}
18. Bxd6 {[%clk 0:00:53.4]} 18... Kxd6 {[%clk 0:01:09.8]} 19. Red1 {[%clk
0:00:35.7]} 19... Ned5 {[%clk 0:01:06.9]} 20. Nf5+ {[%clk 0:00:24.9]} 20... Ke6
{[%clk 0:01:01.4]} 21. Re1+ {[%clk 0:00:11.4]} 21... Kd7 {[%clk 0:01:00.2]} 22.
Rcd1 {[%clk 0:00:08.5]} 22... Bd6 {[%clk 0:00:46.7]} 23. Rxd5 {[%clk 0:00:02.1]}
23... Rhe8 {[%clk 0:00:47.3]} 24. Rdd1 {[%clk 0:00:01.7]} 24... Rxe1+ {[%clk
0:00:43.4]} 25. Rxe1 {[%clk 0:00:02.6]} 25... Re8 {[%clk 0:00:40]} 26. Rd1
{[%clk 0:00:02.9]} 26... Re6 {[%clk 0:00:36.3]} 27. Nxg7 {[%clk 0:00:03.4]}
27... Qxb2 {[%clk 0:00:23.1]} 28. Nxe6 {[%clk 0:00:03.3]} 28... fxe6 {[%clk
0:00:23.8]} 29. g3 {[%clk 0:00:03.1]} 29... Ke7 {[%clk 0:00:20.1]} 30. Qd3
{[%clk 0:00:02.8]} 30... Qb4 {[%clk 0:00:18.6]} 31. Rb1 {[%clk 0:00:02.7]} 31...
Qc5 {[%clk 0:00:15.5]} 32. Rxb7+ {[%clk 0:00:03]} 32... Kd8 {[%clk 0:00:14.5]}
33. Qf3 {[%clk 0:00:02.6]} 33... Be7 {[%clk 0:00:12.7]} 34. Rb1 {[%clk
0:00:02.4]} 34... Nd5 {[%clk 0:00:12.6]} 35. Kg2 {[%clk 0:00:02.5]} 35... Kd7
{[%clk 0:00:13.2]} 36. Rb7+ {[%clk 0:00:02.3]} 36... Kd8 {[%clk 0:00:12.3]} 37.
Rb1 {[%clk 0:00:01.8]} 37... Qc6 {[%clk 0:00:12.8]} 38. Rd1 {[%clk 0:00:01.9]}
38... Ke8 {[%clk 0:00:13.1]} 39. Rd3 {[%clk 0:00:01.4]} 39... Bf6 {[%clk
0:00:11.2]} 40. h4 {[%clk 0:00:02]} 40... Ke7 {[%clk 0:00:11.3]} 41. Rb3 {[%clk
0:00:02.4]} 41... Qc7 {[%clk 0:00:10.8]} 42. Rd3 {[%clk 0:00:02.7]} 42... Qd7
{[%clk 0:00:11.1]} 43. Rd1 {[%clk 0:00:01.7]} 43... Qd6 {[%clk 0:00:11.3]} 44.
Re1 {[%clk 0:00:02.1]} 44... Qc6 {[%clk 0:00:10.7]} 45. Re2 {[%clk 0:00:02.1]}
45... Kf7 {[%clk 0:00:11.2]} 46. Qe4 {[%clk 0:00:02.6]} 46... Kg7 {[%clk
0:00:10.6]} 47. Kh2 {[%clk 0:00:03.1]} 47... e5 {[%clk 0:00:08.8]} 48. Qg4+
{[%clk 0:00:03.1]} 48... Kf7 {[%clk 0:00:08.5]} 49. Qe4 {[%clk 0:00:03.4]} 49...
Ne7 {[%clk 0:00:08.4]} 50. Qh7+ {[%clk 0:00:03.1]} 50... Ke6 {[%clk 0:00:08.6]}
51. Qd3 {[%clk 0:00:03.3]} 51... Nf5 {[%clk 0:00:07.6]} 52. Qb3+ {[%clk
0:00:03.3]} 52... Ke7 {[%clk 0:00:06.7]} 53. Qa3+ {[%clk 0:00:03.3]} 53... Ke6
{[%clk 0:00:06.5]} 54. Qxa7 {[%clk 0:00:03.3]} 54... Qf3 {[%clk 0:00:04.3]} 55.
Qa6+ {[%clk 0:00:03]} 55... Kf7 {[%clk 0:00:04]} 56. Qc4+ {[%clk 0:00:02.8]}
56... Kg6 {[%clk 0:00:03.8]} 57. Qe4 {[%clk 0:00:03.4]} 57... Qxe4 {[%clk
0:00:03.5]} 58. Rxe4 {[%clk 0:00:04.3]} 58... Nd4 {[%clk 0:00:04]} 59. a4 {[%clk
0:00:04.4]} 59... Kf5 {[%clk 0:00:04.6]} 60. Re3 {[%clk 0:00:03.7]} 60... e4
{[%clk 0:00:05.2]} 61. Ra3 {[%clk 0:00:02.2]} 61... Be7 {[%clk 0:00:04.8]} 62.
Ra2 {[%clk 0:00:02.1]} 62... Bc5 {[%clk 0:00:04]} 63. a5 {[%clk 0:00:02.5]}
63... Ba7 {[%clk 0:00:04.9]} 64. a6 {[%clk 0:00:03]} 64... Kg4 {[%clk
0:00:05.2]} 65. Kg2 {[%clk 0:00:03]} 65... Nf3 {[%clk 0:00:04.5]} 66. Rb2 {[%clk
0:00:03]} 66... Ne1+ {[%clk 0:00:04.8]} 67. Kf1 {[%clk 0:00:03.7]} 67... Nd3
{[%clk 0:00:05.3]} 68. Rb7 {[%clk 0:00:03.6]} 68... Bxf2 {[%clk 0:00:05.6]} 69.
Kg2 {[%clk 0:00:02.5]} 69... Be3 {[%clk 0:00:05.2]} 70. Rg7+ {[%clk 0:00:02.6]}
70... Kf5 {[%clk 0:00:05]} 71. a7 {[%clk 0:00:03.2]} 71... Bxa7 {[%clk 0:00:04]}
72. Rxa7 {[%clk 0:00:04.1]} 72... e3 {[%clk 0:00:03.9]} 73. Re7 {[%clk
0:00:04.3]} 73... Ne5 {[%clk 0:00:03]} 74. Kf1 {[%clk 0:00:04.5]} 74... Ke4
{[%clk 0:00:03.3]} 75. Ke2 {[%clk 0:00:04.9]} 75... h5 {[%clk 0:00:03.7]} 76.
Re8 {[%clk 0:00:03.5]} 76... Kd4 {[%clk 0:00:04]} 77. Rd8+ {[%clk 0:00:03.7]}
77... Ke4 {[%clk 0:00:03.9]} 78. Rh8 {[%clk 0:00:04.4]} 78... Nf3 {[%clk
0:00:03.6]} 79. Rxh5 {[%clk 0:00:04]} 79... Nd4+ {[%clk 0:00:03.4]} 80. Ke1
{[%clk 0:00:03.6]} 80... Kf3 {[%clk 0:00:02.2]} 81. Rh8 {[%clk 0:00:01.4]} 1-0